{"text_format":"1","workbook":"xlsx","n_sheets":2,"sheets":["Перечень аккредитованных ","Виды работ"],"not_rendered":{"charts":0,"images":0,"macros":0,"external_links":0,"defined_names":1,"comments":0,"pivot_tables":0},"unopened":[],"bounds":{"document_bytes":16777216,"sheet_cells":100000,"rows_first":2000,"rows_last":500,"rows_between":2000,"halvings":0,"cell_chars":16384,"cell_head_chars":4096},"cells_cut":0,"cells_raw":0,"read":"whole","date_system":"1900"}

{"sheet":"Перечень аккредитованных ","index":0,"n_rows":31,"n_cols":7,"rows_kept":31,"cut":false,"hidden":false,"merged":[[1,0,1,6]]}
[]
["Реестр\nаккредитованных подрядчиков, исполнителей"]
["№ п/п","Наименование участника закупки","ИНН","Дата включения в настоящий Реестр","Срок окончания нахождения участника в Реестре","Виды выполняемых работ \n(оказываемых услуг)","Принадлежность к субъектам малого или среднего предпринимательства"]
[1,"АО «ЭЛВИС-ПЛЮС»",7735003794,"2022-11-24",{"$f":"IF(D4=\"Не учавствовал\",\"\",D4+364)","v":"2023-11-23"},"оказание консалтинговых услуг и выполнение работ по разработке решений в области информационной безопасности","Среднее предприятие"]
[2,"ООО «СОЛАР СЕКЬЮРИТИ»",7718099790,"Исключен с 21.10.2022",null,"оказание консалтинговых услуг и выполнение работ по разработке решений в области информационной безопасности","Не является субъектом МСП"]
[3,"ООО «СПБ»",7802869750,"Исключен с 21.10.2022",null,"оказание консалтинговых услуг и выполнение работ по разработке решений в области информационной безопасности","Малое предприятие"]
[4,"ООО «Визум»",7708256411,"Исключен с 21.10.2022",null,"оказание консалтинговых услуг и выполнение работ по разработке решений в области информационной безопасности","Малое предприятие"]
[5,"ООО «Такском»",7704211201,"Исключен с 21.10.2022",null,"оказание консалтинговых услуг и выполнение работ по разработке решений в области информационной безопасности","Не является субъектом МСП"]
[6,"ООО «КРИПТО-ПРО»",7717107991,"2022-04-27",{"$f":"IF(D9=\"Не учавствовал\",\"\",D9+364)","v":"2023-04-26"},"оказание консалтинговых услуг и выполнение работ по разработке решений в области информационной безопасности","Не является субъектом МСП"]
[7,"ООО «Аванпост»",7722778473,"2022-04-27","2023-04-26","оказание консалтинговых услуг и выполнение работ по разработке решений в области информационной безопасности","Малое предприятие"]
[8,"АО «ИИТ»",7743020560,"2022-11-24","2023-11-23","оказание консалтинговых услуг и выполнение работ по разработке решений в области информационной безопасности","Не является субъектом МСП"]
[9,"АО «ИНКОМА»",7714086623,"Исключен с 21.10.2022",null,"оказание консалтинговых услуг и выполнение работ по разработке решений в области ИТ-инфраструктуры","Малое предприятие"]
[10,"ООО «Рубитех»",7702404085,"2022-11-25","2023-11-24","оказание консалтинговых услуг и выполнение работ по разработке решений в области ИТ-инфраструктуры","Не является субъектом МСП"]
[11,"ООО «ФОРС-Центр разработки»",7702270040,"2022-11-25","2023-11-24","оказание консалтинговых услуг и выполнение работ по разработке решений в области ИТ-инфраструктуры","Не является субъектом МСП"]
[12,"ООО «СОФТКОНСАЛТ»",7703635737,"2022-11-25","2023-11-24","оказание консалтинговых услуг и выполнение работ по разработке решений в области ИТ-инфраструктуры","Малое предприятие"]
[13,"ООО «Контроль ИТ»",5047109034,"2022-11-25","2023-11-24","оказание консалтинговых услуг и выполнение работ по разработке решений в области ИТ-инфраструктуры","Малое предприятие"]
[14,"ООО «АналитиксХаб»",5024195358,"2022-11-30","2023-11-29","оказание консалтинговых услуг и выполнение работ по разработке компонент информационных систем","Малое предприятие"]
[15,"ООО «ИБС Софт»",7713721689,"2022-11-30","2023-11-29","оказание консалтинговых услуг и выполнение работ по разработке компонент информационных систем","Не является субъектом МСП"]
[16,"ООО «Люксофт Профешнл»",7713605227,"Исключен с 21.10.2022",null,"оказание консалтинговых услуг и выполнение работ по разработке компонент информационных систем","Не является субъектом МСП"]
[17,"ООО «Пармалогика»",7708287441,"Исключен с 21.10.2022",null,"оказание консалтинговых услуг и выполнение работ по разработке компонент информационных систем","Не является субъектом МСП"]
[18,"ООО «Ренью»",6678070207,"2022-11-30","2023-11-29","оказание консалтинговых услуг и выполнение работ по разработке компонент информационных систем","Малое предприятие"]
[19,"ООО «Служба налогоплательщика»",7702808708,"Исключен с 21.10.2022",null,"оказание консалтинговых услуг и выполнение работ по разработке компонент информационных систем","Малое предприятие"]
[20,"ООО «СТМ»",5260307811,"2022-11-30","2023-11-29","оказание консалтинговых услуг и выполнение работ по разработке компонент информационных систем","Малое предприятие"]
[21,"ООО «ЦРПО»",7728317990,"2022-11-30","2023-11-29","оказание консалтинговых услуг и выполнение работ по разработке компонент информационных систем","Малое предприятие"]
[22,"ООО «СОФТКОНСАЛТ»",7703635737,"2022-11-30","2023-11-29","оказание консалтинговых услуг и выполнение работ по разработке компонент информационных систем","Малое предприятие"]
[23,"ООО «ФОРС-Центр разработки»",7702270040,"2022-11-30","2023-11-29","оказание консалтинговых услуг и выполнение работ по разработке компонент информационных систем","Не является субъектом МСП"]
[24,"ООО «Студия Т_Г»",7705861555,"2022-04-27","2023-04-26","оказание консалтинговых услуг и выполнение работ по разработке компонент информационных систем","Малое предприятие"]
[25,"ООО «Ф-Лайн Софтвер»",7813461089,"2022-11-30","2023-11-29","оказание консалтинговых услуг и выполнение работ по разработке компонент информационных систем","Не является субъектом МСП"]
[26,"ООО «ИБС Софт»",7713721689,"2022-04-27","2023-04-26","оказание консалтинговых услуг и выполнение работ по разработке компонент информационных систем","Не является субъектом МСП"]
[27,"ООО «КАМА Технологии»",5903125017,"2022-04-27","2023-04-26","оказание консалтинговых услуг и выполнение работ по разработке компонент информационных систем","Малое предприятие"]
[28,"ООО «Ай-ФОРС»",7717693217,"2022-04-27","2023-04-26","оказание консалтинговых услуг и выполнение работ по разработке компонент информационных систем","Малое предприятие"]

{"sheet":"Виды работ","index":1,"n_rows":4,"n_cols":1,"rows_kept":4,"cut":false,"hidden":false,"merged":[]}
["Виды выполняемых работ (оказываемых услуг)"]
["оказание консалтинговых услуг и выполнение работ по разработке решений в области информационной безопасности"]
["оказание консалтинговых услуг и выполнение работ по разработке решений в области ИТ-инфраструктуры"]
["оказание консалтинговых услуг и выполнение работ по разработке компонент информационных систем"]